bitfinex/quotes_BTCUSD_20251031
["timestamp","ask_amount","ask_price","bid_price","bid_amount"]
[1761951988367,4.3428714,109800.0,109790.0,0.00027087]
[1761951993683,4.3448714,109800.0,109790.0,0.00027087]
[1761951994097,4.3428714,109800.0,109790.0,0.00027087]
[1761951994534,4.3448714,109800.0,109790.0,0.00027087]
[1761951995725,4.3428714,109800.0,109790.0,0.00027087]
[1761951995858,4.3448714,109800.0,109790.0,0.00027087]
[1761951997378,4.3428714,109800.0,109790.0,0.00027087]
[1761951997584,4.3448714,109800.0,109790.0,0.00027087]
[1761951998118,4.3305824,109800.0,109790.0,0.00027087]
[1761951998526,4.3285824,109800.0,109790.0,0.00027087]
[1761951998664,4.3305824,109800.0,109790.0,0.00027087]
[1761951999726,4.3285824,109800.0,109790.0,0.00027087]
[1761951999931,4.3305824,109800.0,109790.0,0.00027087]
[1761952000156,4.3285824,109800.0,109790.0,0.00027087]
[1761952000363,4.3305824,109800.0,109790.0,0.00027087]
[1761952001399,4.34487156,109800.0,109790.0,0.00027087]
[1761952003940,4.34287156,109800.0,109790.0,0.00027087]
[1761952004145,4.34487156,109800.0,109790.0,0.00027087]
[1761952006108,4.34287156,109800.0,109790.0,0.00027087]
[1761952006334,4.41018531,109800.0,109790.0,0.00027087]
[1761952006568,4.37766214,109800.0,109790.0,0.00027087]
[1761952006795,4.36336894,109800.0,109790.0,0.00027087]
[1761952007020,4.36136894,109800.0,109790.0,0.00027087]
[1761952007238,4.36336894,109800.0,109790.0,0.00027087]
[1761952008126,4.36136894,109800.0,109790.0,0.00027087]
[1761952008346,4.36336894,109800.0,109790.0,0.00027087]
[1761952009388,4.3633737,109800.0,109790.0,0.00027087]
[1761952009824,4.3613737,109800.0,109790.0,0.00027087]
[1761952010066,4.37566861,109800.0,109790.0,0.00027087]
[1761952011433,4.36137945,109800.0,109790.0,0.00027087]
[1761952012052,4.36337945,109800.0,109790.0,0.00027087]
[1761952014625,4.37766911,109800.0,109790.0,0.00027087]
[1761952017425,3.98272082,109800.0,109790.0,0.00027087]
[1761952017740,3.98072082,109800.0,109790.0,0.00027087]
[1761952017941,3.98272082,109800.0,109790.0,0.00027087]
[1761952018829,4.0169031,109800.0,109790.0,0.00027087]
[1761952019606,3.99985418,109800.0,109790.0,0.00027087]
[1761952019827,4.0169025,109800.0,109790.0,0.00027087]
[1761952020031,4.0189025,109800.0,109790.0,0.00027087]
[1761952020441,4.0169025,109800.0,109790.0,0.00027087]
[1761952020624,4.0189025,109800.0,109790.0,0.00027087]
[1761952021261,4.0169025,109800.0,109790.0,0.00027087]
[1761952021685,4.00261284,109800.0,109790.0,0.00027087]
[1761952022137,4.00461284,109800.0,109790.0,0.00027087]
[1761952022352,4.44918177,109800.0,109790.0,0.00027087]
[1761952022785,4.4922998,109800.0,109790.0,0.00027087]
[1761952023021,4.46150922,109800.0,109790.0,0.00027087]
[1761952023228,4.41638997,109800.0,109790.0,0.00027087]
[1761952023446,4.41438997,109800.0,109790.0,0.00027087]
[1761952023666,4.40209506,109800.0,109790.0,0.00027087]
[1761952023895,4.40109506,109800.0,109790.0,0.00027087]
[1761952024350,4.40609506,109800.0,109790.0,0.00027087]
[1761952025025,4.418386,109800.0,109790.0,0.00027087]
[1761952025243,4.02500295,109800.0,109790.0,0.00027087]
[1761952025475,4.02700295,109800.0,109790.0,0.00027087]
[1761952025744,4.422386,109800.0,109790.0,0.00027087]
[1761952025982,4.02700295,109800.0,109790.0,0.00027087]
[1761952026968,4.03929923,109800.0,109790.0,0.00027087]
[1761952027199,4.04129923,109800.0,109790.0,0.00027087]
[1761952027399,4.03929923,109800.0,109790.0,0.00027087]
[1761952027604,4.48439923,109800.0,109790.0,0.00027087]
[1761952027811,4.87978228,109800.0,109790.0,0.00027087]
[1761952029102,4.67008033,109800.0,109790.0,0.00027087]
[1761952029306,4.65360765,109800.0,109790.0,0.00027087]
[1761952030276,4.2626244,109800.0,109790.0,0.00027087]
[1761952030482,4.2632244,109800.0,109790.0,0.00027087]
[1761952030684,4.2652244,109800.0,109790.0,0.00027087]
[1761952032297,4.6052244,109800.0,109790.0,0.00027087]
[1761952032747,4.68075247,109800.0,109790.0,0.00027087]
[1761952032976,4.59093346,109800.0,109790.0,0.00027087]
[1761952033954,2.59959736,109800.0,109790.0,0.05170087]
[1761952034175,3.91311282,109800.0,109790.0,0.02801087]
[1761952034605,3.9492951,109800.0,109790.0,0.02801087]
[1761952034836,3.9492951,109800.0,109790.0,0.00027087]
[1761952035038,3.96358491,109800.0,109790.0,0.00027087]
[1761952035242,3.9492951,109800.0,109790.0,0.00027087]
[1761952035450,3.9492951,109800.0,109790.0,0.01605087]
[1761952035885,3.9492951,109800.0,109790.0,0.00027087]
[1761952036466,3.9492951,109800.0,109790.0,0.01605087]
[1761952038356,3.96358491,109800.0,109790.0,0.01605087]
[1761952038771,3.96358898,109800.0,109790.0,0.01605087]
[1761952040700,3.94395746,109800.0,109790.0,0.01605087]
[1761952041415,3.7814542,109800.0,109790.0,0.01605087]
[1761952041627,3.96360356,109800.0,109790.0,0.01605087]
[1761952042074,3.94395746,109800.0,109790.0,0.01605087]
[1761952042498,3.9636033,109800.0,109790.0,0.01605087]
[1761952043293,3.94395746,109800.0,109790.0,0.01605087]
[1761952043696,3.7618081,109800.0,109790.0,0.01605087]
[1761952045040,3.94395746,109800.0,109790.0,0.01605087]
[1761952045580,3.96360343,109800.0,109790.0,0.01605087]
[1761952045799,3.94395746,109800.0,109790.0,0.01605087]
[1761952046743,3.7618081,109800.0,109790.0,0.01605087]
[1761952046914,3.7618081,109800.0,109790.0,0.05271087]
[1761952047537,3.74751829,109800.0,109790.0,0.05271087]
[1761952047829,3.74051829,109800.0,109790.0,0.05271087]
[1761952048031,3.92366765,109800.0,109790.0,0.05271087]
[1761952048235,3.92666765,109800.0,109790.0,0.05271087]
[1761952048771,3.74451829,109800.0,109790.0,0.05271087]
[1761952049698,3.76416159,109800.0,109790.0,0.05271087]
[1761952049848,3.74451829,109800.0,109790.0,0.05271087]
[1761952050056,3.74451829,109800.0,109790.0,0.02829087]
[1761952050257,3.92666765,109800.0,109790.0,0.02829087]
[1761952052280,3.92666765,109800.0,109790.0,0.01251087]
[1761952053140,3.92666765,109800.0,109790.0,0.02761087]
[1761952054817,3.94630762,109800.0,109790.0,0.02761087]
[1761952058068,3.94630762,109800.0,109790.0,0.01251087]
[1761952058952,3.94630762,109800.0,109790.0,0.00027087]
[1761952059359,3.97904091,109800.0,109790.0,0.00027087]
[1761952063991,3.99333081,109800.0,109790.0,0.00027087]
[1761952066139,3.99393081,109800.0,109790.0,0.00027087]
[1761952066381,3.99395556,109800.0,109790.0,0.00027087]
[1761952070303,3.97966566,109800.0,109790.0,0.00027087]
[1761952072681,3.98166566,109800.0,109790.0,0.00027087]
[1761952073631,3.99595571,109800.0,109790.0,0.00027087]
[1761952074664,3.97431574,109800.0,109790.0,0.00027087]
[1761952074842,3.99398288,109800.0,109790.0,0.00027087]
[1761952078515,4.04508282,109800.0,109790.0,0.00027087]
[1761952079403,4.44046488,109800.0,109790.0,0.00027087]
[1761952080488,4.43846488,109800.0,109790.0,0.00027087]
[1761952080696,4.42617483,109800.0,109790.0,0.00027087]
[1761952081498,4.42417483,109800.0,109790.0,0.00027087]
[1761952081743,2.47218054,109780.0,109770.0,0.06328866]
[1761952081952,3.28261312,109780.0,109770.0,0.06328866]
[1761952082160,3.28261312,109780.0,109770.0,0.07880866]
[1761952082340,3.10043058,109780.0,109770.0,0.07880866]
[1761952082547,3.11472641,109780.0,109770.0,0.07880866]
[1761952083005,3.11472641,109780.0,109770.0,0.07885681]
[1761952083610,3.29690895,109780.0,109770.0,0.07885681]
[1761952084015,3.31119971,109780.0,109770.0,0.08085681]
[1761952086978,3.31119971,109780.0,109770.0,0.08157179]
[1761952087380,3.12422071,109780.0,109770.0,0.08157179]
[1761952087948,2.94203817,109780.0,109770.0,0.08157179]
[1761952088598,3.12422071,109780.0,109770.0,0.08157179]
[1761952090309,3.12422071,109780.0,109770.0,0.05803179]
[1761952090722,3.12422071,109780.0,109770.0,0.08157179]
[1761952091817,2.94203817,109780.0,109770.0,0.08157179]
[1761952092262,3.12422071,109780.0,109770.0,0.08157179]
[1761952093552,2.94203817,109780.0,109770.0,0.08157179]
[1761952093989,2.92774741,109780.0,109770.0,0.08157179]
[1761952094702,3.10992995,109780.0,109770.0,0.08157179]
[1761952097098,3.12422073,109780.0,109770.0,0.08157179]
[1761952101493,3.10992995,109780.0,109770.0,0.08157179]
[1761952101733,3.11052995,109780.0,109770.0,0.08157179]
[1761952102173,3.50591267,109780.0,109770.0,0.08157179]
[1761952102381,3.11052995,109780.0,109770.0,0.08157179]
[1761952103102,2.92450574,109780.0,109770.0,0.08157179]
[1761952104790,2.93879664,109780.0,109770.0,0.08157179]
[1761952105219,2.92450574,109780.0,109770.0,0.08157179]
[1761952105424,3.31988846,109780.0,109770.0,0.08157179]
[1761952105642,3.45847278,109780.0,109770.0,0.08157179]
[1761952107846,3.47276386,109780.0,109770.0,0.08157179]
[1761952108505,3.29058132,109780.0,109770.0,0.08157179]
[1761952108893,3.47276386,109780.0,109770.0,0.08157179]
[1761952112598,3.48986773,109780.0,109770.0,0.08157179]
[1761952113446,3.47278087,109780.0,109770.0,0.08157179]
[1761952113648,3.48986813,109780.0,109770.0,0.08157179]
[1761952114267,3.47278087,109780.0,109770.0,0.08157179]
[1761952117120,3.48986783,109780.0,109770.0,0.08157179]
[1761952118503,3.47557675,109780.0,109770.0,0.08157179]
[1761952119596,3.87155947,109780.0,109770.0,0.03055179]
[1761952120235,3.87155947,109780.0,109770.0,0.02855179]
[1761952120600,3.87255947,109780.0,109770.0,0.02855179]
[1761952121212,3.87315947,109780.0,109770.0,0.00116313]
[1761952121444,3.87515947,109780.0,109770.0,0.00116313]
[1761952122630,3.94253411,109780.0,109770.0,0.00116313]
[1761952123395,3.87515947,109780.0,109770.0,0.00116313]
[1761952123597,3.87315947,109780.0,109770.0,0.00116313]
[1761952124499,3.87515947,109780.0,109770.0,0.00116313]
[1761952127439,3.94234947,109780.0,109770.0,0.00116313]
[1761952129240,3.94034947,109780.0,109770.0,0.00116313]
[1761952129681,3.94234947,109780.0,109770.0,0.00116313]
[1761952130358,3.87515402,109780.0,109770.0,0.00116313]
[1761952130760,3.87315402,109780.0,109770.0,0.00116313]
[1761952131204,3.4771713,109780.0,109770.0,0.01712313]
[1761952131429,3.87255402,109780.0,109770.0,0.01712313]
[1761952131977,3.88684564,109780.0,109770.0,0.01712313]
[1761952132208,3.88684564,109780.0,109770.0,0.02845313]
[1761952132417,3.95563769,109780.0,109770.0,0.05207313]
[1761952132622,2.51791494,109780.0,109770.0,0.05207313]
[1761952132811,3.49086292,109780.0,109770.0,0.05207313]
[1761952133028,3.28305604,109780.0,109770.0,0.05207313]
[1761952133862,3.28305604,109780.0,109770.0,0.07946399]
[1761952135908,3.26876442,109780.0,109770.0,0.07946399]
[1761952139153,3.28305555,109780.0,109770.0,0.07946399]
[1761952139351,2.88764074,109780.0,109770.0,0.07946399]
[1761952140009,2.87334961,109780.0,109770.0,0.07946399]
[1761952142497,2.47799898,109780.0,109770.0,0.07946399]
[1761952142731,2.11831483,109780.0,109770.0,0.07946399]
[1761952142967,2.11831483,109780.0,109770.0,0.26166313]
[1761952143193,2.104019,109780.0,109770.0,0.26166313]
[1761952143658,2.11730942,109780.0,109770.0,0.26166313]
[1761952143883,2.11730942,109780.0,109770.0,0.26366313]
[1761952146305,2.13160439,109780.0,109770.0,0.26366313]
[1761952147161,0.02858539,109780.0,109770.0,0.26366313]
[1761952149015,0.01429042,109780.0,109770.0,0.65901376]
[1761952149441,0.01429325,109800.0,109790.0,0.18216595]
[1761952149616,2.11731225,109800.0,109790.0,0.32461332]
[1761952150303,2.11731225,109800.0,109790.0,0.14244737]
[1761952150445,2.51266288,109800.0,109790.0,0.14244737]
[1761952150644,2.51266288,109800.0,109790.0,0.16982783]
[1761952150853,2.51266288,109800.0,109790.0,0.17182783]
[1761952151050,2.11731225,109800.0,109790.0,0.17182783]
[1761952151367,2.51266288,109800.0,109790.0,0.17182783]
[1761952154259,2.51266288,109800.0,109790.0,0.08029046]
[1761952154998,2.51266288,109800.0,109790.0,0.08056133]
[1761952155890,2.52695113,109800.0,109790.0,0.08056133]
[1761952159865,3.10445112,109800.0,109790.0,0.08056133]
[1761952160632,3.10445112,109800.0,109790.0,0.05318087]
[1761952161769,3.10445112,109800.0,109790.0,0.02956087]
[1761952162011,3.10445112,109800.0,109790.0,0.05387087]
[1761952163025,3.09016287,109800.0,109790.0,0.05387087]
[1761952166415,3.10445157,109800.0,109790.0,0.05387087]
[1761952168843,3.10505157,109800.0,109790.0,0.05387087]
[1761952169286,3.12471198,109800.0,109790.0,0.05387087]
[1761952169724,3.12411198,109800.0,109790.0,0.05387087]
[1761952169932,2.94196262,109800.0,109790.0,0.05387087]
[1761952170135,2.72876135,109800.0,109790.0,0.05387087]
[1761952171882,3.12411198,109800.0,109790.0,0.05387087]
[1761952173114,3.10982328,109800.0,109790.0,0.05387087]
[1761952180459,3.1183761,109800.0,109790.0,0.05387087]
[1761952183104,3.1189761,109800.0,109790.0,0.05387087]
[1761952183318,3.1183761,109800.0,109790.0,0.05387087]
[1761952186413,3.1189761,109800.0,109790.0,0.05387087]
[1761952186908,3.13326477,109800.0,109790.0,0.05387087]
[1761952187311,3.13266477,109800.0,109790.0,0.05387087]
[1761952190698,3.13266959,109800.0,109790.0,0.05387087]
[1761952192280,2.92713234,109800.0,109790.0,0.05387087]
[1761952192769,2.94142584,109800.0,109790.0,0.05387087]
[1761952193994,2.92713717,109800.0,109790.0,0.05387087]
[1761952197303,2.94142586,109800.0,109790.0,0.05387087]
[1761952200783,2.94142648,109800.0,109790.0,0.05387087]
[1761952201493,2.94125494,109800.0,109790.0,0.05387087]
[1761952206952,3.3371198,109800.0,109790.0,0.05387087]
[1761952207112,3.3365198,109800.0,109790.0,0.05387087]
[1761952207716,3.32223111,109800.0,109790.0,0.05387087]
[1761952208097,3.67994548,109800.0,109790.0,0.00227087]
[1761952208310,3.68194548,109800.0,109790.0,0.00227087]
[1761952208511,3.68054548,109800.0,109790.0,0.00227087]
[1761952208735,3.68254548,109800.0,109790.0,0.00227087]
[1761952208983,3.68054548,109800.0,109790.0,0.00227087]
[1761952209135,3.68254548,109800.0,109790.0,0.00227087]
[1761952209315,3.68254548,109800.0,109790.0,0.00027087]
[1761952209768,3.68354548,109800.0,109790.0,0.00027087]
[1761952211051,3.69783505,109800.0,109790.0,0.00027087]
[1761952211257,3.76505383,109800.0,109790.0,0.00027087]
[1761952211584,3.79923611,109800.0,109790.0,0.00027087]
[1761952212009,3.82862425,109800.0,109790.0,0.00027087]
[1761952212402,4.07172425,109800.0,109790.0,0.00027087]
[1761952213013,4.06972425,109800.0,109790.0,0.00027087]
[1761952213216,4.07172425,109800.0,109790.0,0.00027087]
[1761952213633,4.06972425,109800.0,109790.0,0.00027087]
[1761952214028,4.07172425,109800.0,109790.0,0.00027087]
[1761952214215,4.06972425,109800.0,109790.0,0.00027087]
[1761952214411,4.07172425,109800.0,109790.0,0.00027087]
[1761952214769,4.06972425,109800.0,109790.0,0.00027087]
[1761952215433,4.07172425,109800.0,109790.0,0.00027087]
[1761952216312,4.06972425,109800.0,109790.0,0.00027087]
[1761952216512,4.07172425,109800.0,109790.0,0.00027087]
[1761952217343,4.06972425,109800.0,109790.0,0.00027087]
[1761952217545,4.07172425,109800.0,109790.0,0.00027087]
[1761952217960,4.06972425,109800.0,109790.0,0.00027087]
[1761952218196,4.07172425,109800.0,109790.0,0.00027087]
[1761952219221,4.10445754,109800.0,109790.0,0.00027087]
[1761952220457,4.10245754,109800.0,109790.0,0.00027087]
[1761952220666,4.10445754,109800.0,109790.0,0.00027087]
[1761952221519,4.08816797,109800.0,109790.0,0.00027087]
[1761952222582,4.09016797,109800.0,109790.0,0.00027087]
[1761952224806,4.10445846,109800.0,109790.0,0.00027087]
[1761952229711,4.09016797,109800.0,109790.0,0.00027087]
[1761952232366,4.10445853,109800.0,109790.0,0.00027087]
[1761952234509,4.10185853,109800.0,109790.0,0.00027087]
[1761952234714,4.10245853,109800.0,109790.0,0.00027087]
[1761952234926,4.10445853,109800.0,109790.0,0.00027087]
[1761952235145,4.10245853,109800.0,109790.0,0.00027087]
[1761952235356,4.10445853,109800.0,109790.0,0.00027087]
[1761952235808,4.08479812,109800.0,109790.0,0.00027087]
[1761952236004,4.10447799,109800.0,109790.0,0.00027087]
[1761952238394,4.15357793,109800.0,109790.0,0.00027087]
[1761952240985,4.13928737,109800.0,109790.0,0.00027087]
[1761952243501,5.52508195,109800.0,109790.0,0.00027087]
[1761952243726,5.50663934,109800.0,109790.0,0.00027087]
[1761952245024,5.26353934,109800.0,109790.0,0.00027087]
[1761952247381,5.03850481,109800.0,109790.0,0.00027087]
[1761952247582,5.02421413,109800.0,109790.0,0.00027087]
[1761952250937,5.03850508,109800.0,109790.0,0.00027087]
[1761952257454,5.05479061,109800.0,109790.0,0.00027087]
[1761952259198,5.05419061,109800.0,109790.0,0.00027087]
[1761952259407,5.05479061,109800.0,109790.0,0.00027087]
[1761952261098,5.04049966,109800.0,109790.0,0.00027087]
[1761952261267,2.6689105,109800.0,109790.0,0.00027087]
[1761952261472,3.85520218,109800.0,109790.0,0.00027087]
[1761952264171,3.86949301,109800.0,109790.0,0.00027087]
[1761952267320,3.86947753,109800.0,109790.0,0.00027087]
[1761952271075,3.8551867,109800.0,109790.0,0.00027087]
[1761952271456,3.82779856,109800.0,109790.0,0.00027087]
[1761952274088,3.84208937,109800.0,109790.0,0.00027087]
[1761952276194,3.84208577,109800.0,109790.0,0.00027087]
[1761952280624,3.84008577,109800.0,109790.0,0.00027087]
[1761952281065,3.83948577,109800.0,109790.0,0.00027087]
[1761952281822,3.24405521,109800.0,109790.0,0.00027087]
[1761952282033,3.24345521,109800.0,109790.0,0.02868087]
[1761952282235,3.24405521,109800.0,109790.0,0.02868087]
[1761952282449,3.02595135,109800.0,109790.0,0.02868087]
[1761952282649,3.19185228,109800.0,109790.0,0.02868087]
[1761952282866,3.20614816,109800.0,109790.0,0.02868087]
[1761952283068,3.20814816,109800.0,109790.0,0.02868087]
[1761952283843,3.20614816,109800.0,109790.0,0.02868087]
[1761952284894,3.20814816,109800.0,109790.0,0.02868087]
[1761952285100,3.2204386,109800.0,109790.0,0.02868087]
[1761952285458,3.18758709,109800.0,109790.0,0.02868087]
[1761952285707,3.22044604,109800.0,109790.0,0.02868087]
[1761952285881,3.18759453,109800.0,109790.0,0.02868087]
[1761952288035,3.17270409,109800.0,109790.0,0.05291087]
[1761952288858,3.13652181,109800.0,109790.0,0.05291087]
[1761952290447,2.55894189,109800.0,109790.0,0.05291087]
[1761952290660,2.22631208,109800.0,109790.0,0.05291087]
[1761952290860,2.5520162,109800.0,109790.0,0.05291087]
[1761952291065,2.94744676,109800.0,109790.0,0.05291087]
[1761952291238,2.96173596,109800.0,109790.0,0.05291087]
[1761952292623,3.12677799,109800.0,109790.0,0.05291087]
[1761952294040,3.1410729,109800.0,109790.0,0.05291087]
[1761952294464,2.95892354,109800.0,109790.0,0.05291087]
[1761952294681,3.1410729,109800.0,109790.0,0.05291087]
[1761952297523,3.12139303,109800.0,109790.0,0.05291087]
[1761952297650,3.14106486,109800.0,109790.0,0.05291087]
[1761952298255,3.1325112,109800.0,109790.0,0.05291087]
[1761952303291,2.95036184,109800.0,109790.0,0.05291087]
[1761952303455,2.4877125,109800.0,109790.0,0.05291087]
[1761952304062,2.47341759,109800.0,109790.0,0.05291087]
[1761952304386,2.45912839,109800.0,109790.0,0.05291087]
[1761952307296,2.47341758,109800.0,109790.0,0.05291087]
[1761952309281,2.65556694,109800.0,109790.0,0.05291087]
[1761952309427,2.47341758,109800.0,109790.0,0.05291087]
[1761952310038,2.86884814,109800.0,109790.0,0.05291087]
[1761952311093,2.47341758,109800.0,109790.0,0.05291087]
[1761952316098,2.45912839,109800.0,109790.0,0.05291087]
[1761952317282,2.46767699,109800.0,109790.0,0.05291087]
[1761952319741,2.48197092,109800.0,109790.0,0.05291087]
[1761952321417,2.87693426,109800.0,109790.0,0.05291087]
[1761952322110,2.87693426,109800.0,109790.0,0.07112746]
[1761952322312,2.47318871,109800.0,109790.0,0.05291087]
[1761952322516,2.47318871,109800.0,109790.0,0.08029433]
[1761952322649,2.48747743,109800.0,109790.0,0.08029433]
[1761952323939,2.88267438,109800.0,109790.0,0.08029433]
[1761952325502,2.48747743,109800.0,109790.0,0.08029433]
[1761952325910,2.88267438,109800.0,109790.0,0.08029433]
[1761952327149,2.48747743,109800.0,109790.0,0.08029433]
[1761952327570,2.88267438,109800.0,109790.0,0.08029433]
[1761952329985,2.88267438,109800.0,109790.0,0.05291087]
[1761952331900,2.88267438,109800.0,109790.0,0.07112746]
[1761952334643,2.65571855,109800.0,109790.0,0.07112746]
[1761952340357,2.65571855,109800.0,109790.0,0.05291087]
[1761952342666,2.64142983,109800.0,109790.0,0.05291087]
[1761952344360,1.14468783,109800.0,109790.0,0.05291087]
[1761952345722,1.15897636,109800.0,109790.0,0.05291087]
[1761952349718,1.178669,109800.0,109790.0,0.05291087]
[1761952350370,2.675411,109800.0,109790.0,0.05291087]
[1761952350589,2.85756036,109800.0,109790.0,0.05291087]
[1761952350972,2.675411,109800.0,109790.0,0.05291087]
[1761952351183,2.85756036,109800.0,109790.0,0.05291087]
[1761952351531,2.675411,109800.0,109790.0,0.05291087]
[1761952351726,2.85756036,109800.0,109790.0,0.05291087]
[1761952353747,2.84327183,109800.0,109790.0,0.05291087]
[1761952353928,2.66112247,109800.0,109790.0,0.05291087]
[1761952354155,2.84327183,109800.0,109790.0,0.05291087]
[1761952354356,2.66112247,109800.0,109790.0,0.05291087]
[1761952354511,2.84327183,109800.0,109790.0,0.05291087]
[1761952356661,2.85756066,109800.0,109790.0,0.05291087]
[1761952361814,2.84327183,109800.0,109790.0,0.05291087]
[1761952364927,2.8575608,109800.0,109790.0,0.05291087]
[1761952372462,3.25335775,109800.0,109790.0,0.05291087]
[1761952372662,3.27900022,109800.0,109790.0,0.05291087]
[1761952372880,3.27840022,109800.0,109790.0,0.05291087]
[1761952377662,3.26411125,109800.0,109790.0,0.05291087]
[1761952382052,2.0785204,109800.0,109790.0,0.05291087]
[1761952382270,3.26411125,109800.0,109790.0,0.05291087]
[1761952383286,2.0785204,109800.0,109790.0,0.05291087]
[1761952383498,2.86912148,109800.0,109790.0,0.05291087]
[1761952384133,2.88341073,109800.0,109790.0,0.05291087]
[1761952384373,2.86631583,109800.0,109790.0,0.05291087]
[1761952390570,2.85776826,109800.0,109790.0,0.05291087]
[1761952390775,2.86631383,109800.0,109790.0,0.05291087]
[1761952396517,2.85202458,109800.0,109790.0,0.05291087]
[1761952399426,2.8663138,109800.0,109790.0,0.05291087]
[1761952401124,2.88341041,109800.0,109790.0,0.05291087]
[1761952409658,2.88401041,109800.0,109790.0,0.05291087]
[1761952409865,2.88341041,109800.0,109790.0,0.05291087]
[1761952411733,2.52912119,109800.0,109790.0,0.05291087]
[1761952413344,2.52972119,109800.0,109790.0,0.05291087]
[1761952413548,2.52972119,109800.0,109790.0,0.02868087]
[1761952414189,3.58854146,109800.0,109790.0,0.00027087]
[1761952414405,3.6365246,109800.0,109790.0,0.00027087]
[1761952414614,3.66937611,109800.0,109790.0,0.00027087]
[1761952415043,3.68366736,109800.0,109790.0,0.00027087]
[1761952415447,3.66481192,109800.0,109790.0,0.00027087]
[1761952415659,3.65352067,109800.0,109790.0,0.00027087]
[1761952415937,3.65452067,109800.0,109790.0,0.00027087]
[1761952417398,3.62166916,109800.0,109790.0,0.00027087]
[1761952418550,3.63596046,109800.0,109790.0,0.00027087]
[1761952418922,3.63592335,109800.0,109790.0,0.00027087]
[1761952421746,3.7178748,109800.0,109790.0,0.00027087]
[1761952422320,3.66877486,109800.0,109790.0,0.00027087]
[1761952423141,3.65018146,109800.0,109790.0,0.00027087]
[1761952425170,3.63588753,109800.0,109790.0,0.00027087]
[1761952432650,3.62159623,109800.0,109790.0,0.00027087]
[1761952433440,3.65640758,109800.0,109790.0,0.00027087]
[1761952434284,3.65540758,109800.0,109790.0,0.00027087]
[1761952434677,3.65740758,109800.0,109790.0,0.00027087]
[1761952434867,3.65440758,109800.0,109790.0,0.00027087]
[1761952435256,3.66040758,109800.0,109790.0,0.00027087]
[1761952435491,3.67470001,109800.0,109790.0,0.00027087]
[1761952436005,3.76451902,109800.0,109790.0,0.00027087]
[1761952438745,3.77881596,109800.0,109790.0,0.00027087]
[1761952439126,3.76451902,109800.0,109790.0,0.00027087]
[1761952439334,3.71541908,109800.0,109790.0,0.00027087]
[1761952440347,3.70112665,109800.0,109790.0,0.00027087]
[1761952442066,3.69686067,109800.0,109790.0,0.00027087]
[1761952442302,3.60704166,109800.0,109790.0,0.00027087]
[1761952442489,3.67250825,109800.0,109790.0,0.00027087]
[1761952443148,3.68680068,109800.0,109790.0,0.00027087]
[1761952443356,4.8741333,109800.0,109790.0,0.00027087]
[1761952447027,0.55836482,109780.0,109770.0,0.00044815]
[1761952447396,3.32239655,109780.0,109770.0,0.00044815]
[1761952447679,3.35038936,109780.0,109770.0,0.00089224]
[1761952448291,3.35338936,109780.0,109770.0,0.00089224]
[1761952449493,3.35138936,109780.0,109770.0,0.00089224]
[1761952449907,3.31860385,109780.0,109770.0,0.00089224]
[1761952450085,3.32060385,109780.0,109770.0,0.00089224]
[1761952450298,3.35337875,109780.0,109770.0,0.00089224]
[1761952451391,3.36767149,109780.0,109770.0,0.00089224]
[1761952451598,3.34027868,109780.0,109770.0,0.00089224]
[1761952452202,3.33827868,109780.0,109770.0,0.00089224]
[1761952452407,3.35457619,109780.0,109770.0,0.00089224]
[1761952452813,3.34027868,109780.0,109770.0,0.00089224]
[1761952455893,3.35457623,109780.0,109770.0,0.00089224]
[1761952458656,3.35257623,109780.0,109770.0,0.00089224]
[1761952459056,3.74811527,109780.0,109770.0,0.00089224]
[1761952459733,3.75011527,109780.0,109770.0,0.00089224]
[1761952462706,3.73305577,109780.0,109770.0,0.00089224]
[1761952462930,3.75014414,109780.0,109770.0,0.00089224]
[1761952463367,3.79930649,109780.0,109770.0,0.00089224]
[1761952463569,4.59038457,109780.0,109770.0,0.00089224]
[1761952463979,4.68020358,109780.0,109770.0,0.00089224]
[1761952464369,4.59038457,109780.0,109770.0,0.00089224]
[1761952472417,4.57609183,109780.0,109770.0,0.00089224]
[1761952473039,4.5760885,109780.0,109770.0,0.00089224]
[1761952475009,4.5740885,109780.0,109770.0,0.00089224]
[1761952475210,4.5760885,109780.0,109770.0,0.00089224]
[1761952475619,4.59038167,109780.0,109770.0,0.00089224]
[1761952475818,4.88020068,109780.0,109770.0,0.00089224]
[1761952476016,4.84742578,109780.0,109770.0,0.00089224]
[1761952476218,4.87482177,109780.0,109770.0,0.00089224]
[1761952478292,4.87481965,109780.0,109770.0,0.00089224]
[1761952479165,4.8605221,109780.0,109770.0,0.00089224]
[1761952479588,4.78500205,109780.0,109770.0,0.00089224]
[1761952479796,4.77070309,109780.0,109770.0,0.00089224]
[1761952482651,4.78500205,109780.0,109770.0,0.00089224]
[1761952486140,4.77070888,109780.0,109770.0,0.00089224]
[1761952487889,4.55753231,109780.0,109770.0,0.00089224]
[1761952488092,4.73971485,109780.0,109770.0,0.00089224]
[1761952488924,4.75400867,109780.0,109770.0,0.00089224]
[1761952491989,4.75200867,109780.0,109770.0,0.00089224]
[1761952492192,4.75400867,109780.0,109770.0,0.00089224]
[1761952493272,4.75200867,109780.0,109770.0,0.00089224]
[1761952493478,4.75400867,109780.0,109770.0,0.00089224]
[1761952494220,4.75200867,109780.0,109770.0,0.00089224]
[1761952494463,4.55400867,109780.0,109770.0,0.00089224]
[1761952494970,4.52661268,109780.0,109770.0,0.00089224]
[1761952495359,4.52461268,109780.0,109770.0,0.00089224]
[1761952495758,4.52661268,109780.0,109770.0,0.00089224]
[1761952495956,4.52461268,109780.0,109770.0,0.00089224]
[1761952496186,4.52661268,109780.0,109770.0,0.00089224]
[1761952496385,4.52461268,109780.0,109770.0,0.00089224]
[1761952497131,4.52661268,109780.0,109770.0,0.00089224]
[1761952497638,4.52461268,109780.0,109770.0,0.00089224]
[1761952498034,4.54099588,109780.0,109770.0,0.00089224]
[1761952498238,4.54299588,109780.0,109770.0,0.00089224]
[1761952499410,4.52870206,109780.0,109770.0,0.00089224]
[1761952499815,4.52670206,109780.0,109770.0,0.00089224]
[1761952500021,4.52870206,109780.0,109770.0,0.00089224]
[1761952500430,4.61852107,109780.0,109770.0,0.00089224]
[1761952501076,4.52870206,109780.0,109770.0,0.00089224]
[1761952502615,4.54299594,109780.0,109770.0,0.00089224]
[1761952503415,3.35671551,109780.0,109770.0,0.00089224]
[1761952504308,3.55671551,109780.0,109770.0,0.00089224]
[1761952504711,3.16106424,109780.0,109770.0,0.00089224]
[1761952508878,3.11190189,109780.0,109770.0,0.00089224]
[1761952509252,3.13929908,109780.0,109770.0,0.00089224]
[1761952509936,3.1250052,109780.0,109770.0,0.00089224]
[1761952511557,3.09760801,109780.0,109770.0,0.00089224]
[1761952512590,3.09560801,109780.0,109770.0,0.00089224]
[1761952512790,3.09762622,109780.0,109770.0,0.00089224]
[1761952513187,3.11192004,109780.0,109770.0,0.00089224]
[1761952516312,3.10992004,109780.0,109770.0,0.00089224]
[1761952517176,3.11192004,109780.0,109770.0,0.00089224]
[1761952519074,3.10992004,109780.0,109770.0,0.00089224]
[1761952519278,3.11192004,109780.0,109770.0,0.00089224]
[1761952519901,3.10992004,109780.0,109770.0,0.00089224]
[1761952520118,3.11192004,109780.0,109770.0,0.00089224]
[1761952522680,3.09762622,109780.0,109770.0,0.00089224]